[Event "*** Titled Tuesday Blitz"]
[Site "Chess.com"]
[Date "2021.04.20"]
[Round "4"]
[White "NicoChasin"]
[Black "profofchess"]
[Result "1-0"]
[WhiteElo "2688"]
[BlackElo "2499"]
[TimeControl "180+1"]
[EndTime "10:38:46 PDT"]
[Termination "NicoChasin won by resignation"]

1. d4 {[%clk 0:03:00.6]} 1... Nf6 {[%clk 0:02:59.7]} 2. c4 {[%clk 0:02:55.5]}
2... e6 {[%clk 0:02:59.9]} 3. Nf3 {[%clk 0:02:49.9]} 3... c5 {[%clk 0:02:59.4]}
4. d5 {[%clk 0:02:49.9]} 4... exd5 {[%clk 0:02:59.5]} 5. cxd5 {[%clk 0:02:50]}
5... d6 {[%clk 0:03:00.4]} 6. Nc3 {[%clk 0:02:50.2]} 6... g6 {[%clk 0:03:00.3]}
7. Bf4 {[%clk 0:02:50.2]} 7... a6 {[%clk 0:02:59.9]} 8. a4 {[%clk 0:02:48.3]}
8... Bg7 {[%clk 0:02:59.9]} 9. e3 {[%clk 0:02:47.8]} 9... O-O {[%clk 0:03:00.1]}
10. h3 {[%clk 0:02:09.7]} 10... Ne8 {[%clk 0:02:59.7]} 11. a5 {[%clk 0:02:07.8]}
11... Nd7 {[%clk 0:02:59.6]} 12. Nd2 {[%clk 0:02:07.4]} 12... Ne5 {[%clk
0:02:50.3]} 13. Be2 {[%clk 0:02:03.7]} 13... f5 {[%clk 0:02:49.1]} 14. O-O
{[%clk 0:01:58.4]} 14... g5 {[%clk 0:02:43.7]} 15. Bh2 {[%clk 0:01:58]} 15... f4
{[%clk 0:02:42.2]} 16. exf4 {[%clk 0:01:56.2]} 16... gxf4 {[%clk 0:02:43.1]} 17.
Nf3 {[%clk 0:01:52.3]} 17... Bd7 {[%clk 0:02:20]} 18. Qd2 {[%clk 0:01:47.4]}
18... Nxf3+ {[%clk 0:02:14.1]} 19. Bxf3 {[%clk 0:01:47.1]} 19... Be5 {[%clk
0:02:14.9]} 20. Rfe1 {[%clk 0:01:43.3]} 20... Qg5 {[%clk 0:01:57.7]} 21. Ne4
{[%clk 0:01:39.6]} 21... Qg7 {[%clk 0:01:57.5]} 22. Kh1 {[%clk 0:01:34.4]} 22...
Nc7 {[%clk 0:01:48.9]} 23. Nxc5 {[%clk 0:01:11.4]} 23... dxc5 {[%clk 0:01:33.3]}
24. d6 {[%clk 0:01:12.3]} 24... Ne6 {[%clk 0:01:33.5]} 25. Qd5 {[%clk
0:01:11.1]} 25... Bxb2 {[%clk 0:01:24.3]} 26. Rab1 {[%clk 0:01:09.8]} 26... Rae8
{[%clk 0:01:16.8]} 27. Bg4 {[%clk 0:00:58.7]} 27... Bc6 {[%clk 0:00:43.7]} 28.
Qb3 {[%clk 0:00:57.1]} 28... Bd4 {[%clk 0:00:22]} 29. Rxe6 {[%clk 0:00:52.4]}
29... Rxe6 {[%clk 0:00:21.1]} 30. Qxe6+ {[%clk 0:00:52]} 30... Kh8 {[%clk
0:00:21.4]} 31. d7 {[%clk 0:00:48.7]} 31... h5 {[%clk 0:00:16.2]} 32. Bf3 {[%clk
0:00:39.4]} 32... Bxd7 {[%clk 0:00:14.3]} 33. Qd5 {[%clk 0:00:37.8]} 33... Bc6
{[%clk 0:00:12.7]} 34. Qxh5+ {[%clk 0:00:37.4]} 34... Qh7 {[%clk 0:00:13.2]} 35.
Qxh7+ {[%clk 0:00:36.4]} 35... Kxh7 {[%clk 0:00:14.1]} 36. Bxc6 {[%clk
0:00:36.8]} 36... bxc6 {[%clk 0:00:14.9]} 37. Rb7+ {[%clk 0:00:36.8]} 37... Kh8
{[%clk 0:00:09.7]} 38. Rb6 {[%clk 0:00:32.6]} 38... Re8 {[%clk 0:00:08.7]} 39.
Bxf4 {[%clk 0:00:31.9]} 39... Bxf2 {[%clk 0:00:06.2]} 40. Rxa6 {[%clk
0:00:28.7]} 40... Re4 {[%clk 0:00:04.6]} 41. Bd6 {[%clk 0:00:20.7]} 41... Ra4
{[%clk 0:00:03.7]} 42. Bc7 {[%clk 0:00:20.6]} 42... c4 {[%clk 0:00:03.6]} 43.
Rxc6 {[%clk 0:00:20.5]} 43... Ra1+ {[%clk 0:00:01.7]} 44. Kh2 {[%clk 0:00:20.2]}
44... Ra4 {[%clk 0:00:02.4]} 45. a6 {[%clk 0:00:20.3]} 45... Kg7 {[%clk
0:00:02.6]} 46. Bg3 {[%clk 0:00:16.8]} 46... Be3 {[%clk 0:00:02]} 47. Be5+
{[%clk 0:00:16.7]} 47... Kf7 {[%clk 0:00:01.9]} 48. h4 {[%clk 0:00:16.1]} 48...
Ke7 {[%clk 0:00:01.8]} 49. h5 {[%clk 0:00:16.1]} 49... Kd7 {[%clk 0:00:02.2]}
50. Rc7+ {[%clk 0:00:16.1]} 50... Ke6 {[%clk 0:00:02.3]} 51. Bg3 {[%clk
0:00:14.7]} 51... Kd5 {[%clk 0:00:02.4]} 52. Rd7+ {[%clk 0:00:14.7]} 52... Ke4
{[%clk 0:00:02.7]} 53. Rd6 {[%clk 0:00:15.6]} 53... Bd4 {[%clk 0:00:02.1]} 54.
h6 {[%clk 0:00:14.2]} 54... c3 {[%clk 0:00:02.3]} 55. Rxd4+ {[%clk 0:00:12.8]}
55... Rxd4 {[%clk 0:00:02]} 56. h7 {[%clk 0:00:13]} 56... c2 {[%clk 0:00:02.5]}
57. h8=Q {[%clk 0:00:12.3]} 57... c1=Q {[%clk 0:00:02.8]} 58. a7 {[%clk
0:00:12]} 58... Rd1 {[%clk 0:00:02.2]} 59. a8=Q+ {[%clk 0:00:11.9]} 59... Ke3
{[%clk 0:00:02.3]} 60. Qh6+ {[%clk 0:00:11.8]} 60... Ke2 {[%clk 0:00:02.6]} 61.
Qxc1 {[%clk 0:00:12.7]} 61... Rxc1 {[%clk 0:00:03.2]} 62. Qf3+ {[%clk
0:00:12.8]} 1-0

[Event "*** Titled Tuesday Blitz"]
[Site "Chess.com"]
[Date "2021.04.20"]
[Round "4"]
[White "lider34"]
[Black "Artem_Sadovsky"]
[Result "0-1"]
[WhiteElo "2462"]
[BlackElo "2630"]
[TimeControl "180+1"]
[EndTime "10:38:46 PDT"]
[Termination "Artem_Sadovsky won on time"]

1. e4 {[%clk 0:03:00.9]} 1... g6 {[%clk 0:02:58.7]} 2. d4 {[%clk 0:02:59.9]}
2... Bg7 {[%clk 0:02:59]} 3. Nc3 {[%clk 0:02:59.6]} 3... c6 {[%clk 0:02:59]} 4.
h3 {[%clk 0:02:53.9]} 4... d5 {[%clk 0:02:59]} 5. Nf3 {[%clk 0:02:52]} 5... dxe4
{[%clk 0:02:59.2]} 6. Nxe4 {[%clk 0:02:52.9]} 6... Nd7 {[%clk 0:02:59.4]} 7. Bd3
{[%clk 0:02:49.1]} 7... Ngf6 {[%clk 0:02:59.5]} 8. Nxf6+ {[%clk 0:02:48.6]} 8...
Nxf6 {[%clk 0:03:00.2]} 9. O-O {[%clk 0:02:48.5]} 9... O-O {[%clk 0:03:00.9]}
10. c3 {[%clk 0:02:48.4]} 10... Qc7 {[%clk 0:03:01]} 11. Re1 {[%clk 0:02:47.5]}
11... c5 {[%clk 0:02:56.7]} 12. dxc5 {[%clk 0:02:44.7]} 12... Qxc5 {[%clk
0:02:53.9]} 13. Be3 {[%clk 0:02:43.8]} 13... Qc7 {[%clk 0:02:50.7]} 14. Bd4
{[%clk 0:02:43.1]} 14... b6 {[%clk 0:02:46.5]} 15. Qe2 {[%clk 0:02:40.9]} 15...
Re8 {[%clk 0:02:35.3]} 16. Be5 {[%clk 0:02:32.4]} 16... Qc5 {[%clk 0:01:35]} 17.
b4 {[%clk 0:02:18.4]} 17... Qd5 {[%clk 0:01:30.3]} 18. Bxf6 {[%clk 0:02:03.4]}
18... Bxf6 {[%clk 0:01:30.7]} 19. Be4 {[%clk 0:02:02.8]} 19... Qh5 {[%clk
0:01:23.4]} 20. Bxa8 {[%clk 0:02:01.5]} 20... Bxh3 {[%clk 0:01:23.7]} 21. Ne5
{[%clk 0:01:24.2]} 21... Qg5 {[%clk 0:00:56.6]} 22. Bd5 {[%clk 0:00:56.4]} 22...
e6 {[%clk 0:00:50.8]} 23. Bf3 {[%clk 0:00:55.4]} 23... Bf5 {[%clk 0:00:47]} 24.
Qe3 {[%clk 0:00:53.5]} 24... Qh4 {[%clk 0:00:46.5]} 25. g3 {[%clk 0:00:50.8]}
25... Qh3 {[%clk 0:00:45.3]} 26. Bg2 {[%clk 0:00:45.9]} 26... Qh5 {[%clk
0:00:45.2]} 27. f3 {[%clk 0:00:45.2]} 27... Bc2 {[%clk 0:00:34.9]} 28. Rac1
{[%clk 0:00:42.2]} 28... Ba4 {[%clk 0:00:34.8]} 29. f4 {[%clk 0:00:38.1]} 29...
Bg7 {[%clk 0:00:29]} 30. Re2 {[%clk 0:00:33.4]} 30... Qf5 {[%clk 0:00:25.3]} 31.
Qe4 {[%clk 0:00:28]} 31... Qf6 {[%clk 0:00:23.9]} 32. c4 {[%clk 0:00:27]} 32...
h5 {[%clk 0:00:16.7]} 33. b5 {[%clk 0:00:26.7]} 33... h4 {[%clk 0:00:16]} 34. g4
{[%clk 0:00:23.2]} 34... Bf8 {[%clk 0:00:15.9]} 35. g5 {[%clk 0:00:21.6]} 35...
Bc5+ {[%clk 0:00:16]} 36. Kh1 {[%clk 0:00:20.2]} 36... Qd8 {[%clk 0:00:15.8]}
37. Ng4 {[%clk 0:00:17.3]} 37... Kg7 {[%clk 0:00:09.9]} 38. Qe5+ {[%clk
0:00:16.7]} 38... Kf8 {[%clk 0:00:10.3]} 39. Qh8+ {[%clk 0:00:15.4]} 39... Ke7
{[%clk 0:00:10.4]} 40. Qf6+ {[%clk 0:00:14.5]} 40... Kf8 {[%clk 0:00:11.1]} 41.
Ne5 {[%clk 0:00:13.1]} 41... Qxf6 {[%clk 0:00:07.1]} 42. gxf6 {[%clk 0:00:11.3]}
42... Rd8 {[%clk 0:00:08]} 43. Bf3 {[%clk 0:00:09.4]} 43... Ba3 {[%clk
0:00:04.1]} 44. Kg2 {[%clk 0:00:08.2]} 44... Bxc1 {[%clk 0:00:04]} 45. Nc6
{[%clk 0:00:05]} 45... Rc8 {[%clk 0:00:03.4]} 46. f5 {[%clk 0:00:04.3]} 46...
gxf5 {[%clk 0:00:02.5]} 47. Kh3 {[%clk 0:00:03.9]} 47... Bd1 {[%clk 0:00:01.8]}
48. Rf2 {[%clk 0:00:03]} 48... Bxf3 {[%clk 0:00:02.7]} 49. Rxf3 {[%clk 0:00:03]}
49... Bg5 {[%clk 0:00:03.2]} 50. Rf1 {[%clk 0:00:01.8]} 50... Bxf6 {[%clk
0:00:03.8]} 51. Rd1 {[%clk 0:00:01.4]} 51... a5 {[%clk 0:00:04.3]} 0-1

[Event "*** Titled Tuesday Blitz"]
[Site "Chess.com"]
[Date "2021.04.20"]
[Round "4"]
[White "DKmirl"]
[Black "supertfc"]
[Result "0-1"]
[WhiteElo "1882"]
[BlackElo "2367"]
[TimeControl "180+1"]
[EndTime "10:38:46 PDT"]
[Termination "supertfc won by checkmate"]

1. d4 {[%clk 0:03:00.9]} 1... Nf6 {[%clk 0:02:59.1]} 2. c4 {[%clk 0:03:00.9]}
2... g6 {[%clk 0:02:52.7]} 3. Nf3 {[%clk 0:03:01.2]} 3... Bg7 {[%clk 0:02:52.3]}
4. g3 {[%clk 0:03:01.8]} 4... O-O {[%clk 0:02:47.8]} 5. Bg2 {[%clk 0:03:02.4]}
5... d6 {[%clk 0:02:48.2]} 6. O-O {[%clk 0:03:03]} 6... Nc6 {[%clk 0:02:46.5]}
7. Nc3 {[%clk 0:03:03.2]} 7... a6 {[%clk 0:02:46.8]} 8. e4 {[%clk 0:03:02.7]}
8... Bg4 {[%clk 0:02:44.3]} 9. h3 {[%clk 0:03:00.4]} 9... Bxf3 {[%clk
0:02:44.3]} 10. Bxf3 {[%clk 0:02:59.2]} 10... e5 {[%clk 0:02:42.7]} 11. d5
{[%clk 0:02:29.7]} 11... Nd4 {[%clk 0:02:42.3]} 12. Bg2 {[%clk 0:02:27.8]} 12...
c5 {[%clk 0:02:34.5]} 13. Ne2 {[%clk 0:02:25.8]} 13... b5 {[%clk 0:02:17.8]} 14.
Nxd4 {[%clk 0:02:24.2]} 14... exd4 {[%clk 0:02:13.3]} 15. Qd3 {[%clk 0:02:03.9]}
15... Nd7 {[%clk 0:02:11.1]} 16. Bf4 {[%clk 0:02:01.6]} 16... bxc4 {[%clk
0:02:07.9]} 17. Qxc4 {[%clk 0:02:01]} 17... Qb6 {[%clk 0:01:47]} 18. Rab1 {[%clk
0:01:54.4]} 18... Ne5 {[%clk 0:01:39.9]} 19. Bxe5 {[%clk 0:01:52.9]} 19... Bxe5
{[%clk 0:01:40.8]} 20. f4 {[%clk 0:01:52.2]} 20... Bg7 {[%clk 0:01:40.1]} 21.
Rfe1 {[%clk 0:01:43.2]} 21... Qb5 {[%clk 0:01:35.3]} 22. b3 {[%clk 0:01:19.6]}
22... Qa5 {[%clk 0:01:20.7]} 23. Re2 {[%clk 0:01:01.2]} 23... Rfe8 {[%clk
0:01:19.3]} 24. Rbe1 {[%clk 0:00:59.8]} 24... Qc3 {[%clk 0:01:00]} 25. Qxc3
{[%clk 0:00:45.6]} 25... dxc3 {[%clk 0:01:00.9]} 26. e5 {[%clk 0:00:46.1]} 26...
Rad8 {[%clk 0:00:57.3]} 27. Rc1 {[%clk 0:00:41.5]} 27... dxe5 {[%clk 0:00:53]}
28. fxe5 {[%clk 0:00:40.2]} 28... Rxe5 {[%clk 0:00:50.4]} 29. Rxe5 {[%clk
0:00:37.5]} 29... Bxe5 {[%clk 0:00:51.3]} 30. g4 {[%clk 0:00:36.8]} 30... f6
{[%clk 0:00:42.4]} 31. Kf2 {[%clk 0:00:35.6]} 31... Kf8 {[%clk 0:00:39.3]} 32.
Ke2 {[%clk 0:00:35.6]} 32... Ke7 {[%clk 0:00:39.6]} 33. Kd3 {[%clk 0:00:36.1]}
33... Kd6 {[%clk 0:00:39.6]} 34. Rf1 {[%clk 0:00:24.2]} 34... a5 {[%clk
0:00:32.7]} 35. Re1 {[%clk 0:00:20.7]} 35... Rh8 {[%clk 0:00:21.8]} 36. Re4
{[%clk 0:00:20.2]} 36... h5 {[%clk 0:00:21.6]} 37. Ra4 {[%clk 0:00:13.6]} 37...
hxg4 {[%clk 0:00:20.1]} 38. Rxg4 {[%clk 0:00:13.7]} 38... g5 {[%clk 0:00:14.7]}
39. Ra4 {[%clk 0:00:13.5]} 39... Ra8 {[%clk 0:00:13]} 40. a3 {[%clk 0:00:12.2]}
40... Rb8 {[%clk 0:00:07]} 41. Kc2 {[%clk 0:00:11.3]} 41... Ra8 {[%clk
0:00:03.4]} 42. b4 {[%clk 0:00:11.7]} 42... cxb4 {[%clk 0:00:02.9]} 43. axb4
{[%clk 0:00:11.9]} 43... Rb8 {[%clk 0:00:03.5]} 44. bxa5 {[%clk 0:00:11.5]}
44... Rb2+ {[%clk 0:00:03.4]} 45. Kd3 {[%clk 0:00:11.6]} 45... Rxg2 {[%clk
0:00:04.3]} 46. a6 {[%clk 0:00:11.4]} 46... Rg3+ {[%clk 0:00:03.5]} 47. Kc2
{[%clk 0:00:10.7]} 47... Rg2+ {[%clk 0:00:03.6]} 48. Kc1 {[%clk 0:00:10.9]}
48... Rg1+ {[%clk 0:00:03.5]} 49. Kc2 {[%clk 0:00:11.1]} 49... Rg2+ {[%clk
0:00:03.7]} 50. Kc1 {[%clk 0:00:11.5]} 50... Bf4+ {[%clk 0:00:04.6]} 51. Rxf4
{[%clk 0:00:07.6]} 51... gxf4 {[%clk 0:00:04.9]} 52. Kb1 {[%clk 0:00:07.1]}
52... f3 {[%clk 0:00:04.4]} 53. a7 {[%clk 0:00:06.9]} 53... f2 {[%clk
0:00:04.6]} 54. a8=Q {[%clk 0:00:06]} 54... f1=Q# {[%clk 0:00:05.5]} 0-1

[Event "*** Titled Tuesday Blitz"]
[Site "Chess.com"]
[Date "2021.04.20"]
[Round "4"]
[White "freshfoodcompany"]
[Black "MikeSailer"]
[Result "0-1"]
[WhiteElo "2365"]
[BlackElo "2177"]
[TimeControl "180+1"]
[EndTime "10:38:47 PDT"]
[Termination "MikeSailer won by resignation"]

1. d4 {[%clk 0:03:00.9]} 1... d5 {[%clk 0:02:59.4]} 2. c4 {[%clk 0:03:01.2]}
2... Bf5 {[%clk 0:02:59.8]} 3. cxd5 {[%clk 0:03:01.1]} 3... Bxb1 {[%clk
0:02:59.7]} 4. Qa4+ {[%clk 0:02:59.7]} 4... c6 {[%clk 0:03:00.5]} 5. Rxb1 {[%clk
0:02:59.4]} 5... Qxd5 {[%clk 0:03:00.5]} 6. Nf3 {[%clk 0:02:59.8]} 6... Nf6
{[%clk 0:03:01.1]} 7. e3 {[%clk 0:03:00.1]} 7... Nbd7 {[%clk 0:03:00.3]} 8. Bc4
{[%clk 0:03:00.2]} 8... Qf5 {[%clk 0:02:59.6]} 9. Nd2 {[%clk 0:02:56.6]} 9...
Ne4 {[%clk 0:02:51.9]} 10. Nxe4 {[%clk 0:01:42.7]} 10... Qxe4 {[%clk 0:02:48.1]}
11. Qb3 {[%clk 0:01:37.1]} 11... Qxb1 {[%clk 0:02:19.6]} 12. Bxf7+ {[%clk
0:01:34.1]} 12... Kd8 {[%clk 0:02:20.2]} 13. O-O {[%clk 0:01:33]} 13... Qf5
{[%clk 0:02:03.3]} 14. Be6 {[%clk 0:01:32.2]} 14... Qb5 {[%clk 0:02:00.2]} 15.
Qc2 {[%clk 0:01:22.8]} 15... g6 {[%clk 0:01:45.9]} 16. a4 {[%clk 0:01:21.3]}
16... Qh5 {[%clk 0:01:25.7]} 17. d5 {[%clk 0:01:19.3]} 17... Rc8 {[%clk
0:01:18.4]} 18. Qc3 {[%clk 0:00:56.3]} 18... Qe5 {[%clk 0:01:12.1]} 19. Qxe5
{[%clk 0:00:52.3]} 19... Nxe5 {[%clk 0:01:12.4]} 20. Bxc8 {[%clk 0:00:52.2]}
20... Kxc8 {[%clk 0:01:13]} 21. dxc6 {[%clk 0:00:52.1]} 21... Nxc6 {[%clk
0:01:12.4]} 22. b3 {[%clk 0:00:49.2]} 22... Bg7 {[%clk 0:01:12.6]} 23. Rd1
{[%clk 0:00:49.1]} 23... Rd8 {[%clk 0:01:12.8]} 24. Rxd8+ {[%clk 0:00:49.1]}
24... Kxd8 {[%clk 0:01:09.7]} 25. Bd2 {[%clk 0:00:49.3]} 25... a5 {[%clk
0:01:01.5]} 26. Kf1 {[%clk 0:00:49.1]} 26... Kc7 {[%clk 0:01:01.3]} 27. Ke2
{[%clk 0:00:48.9]} 27... Kd6 {[%clk 0:00:55.8]} 28. Kd3 {[%clk 0:00:48.4]} 28...
Kc5 {[%clk 0:00:53]} 29. Ke4 {[%clk 0:00:34.1]} 29... Bf6 {[%clk 0:00:40.2]} 30.
f4 {[%clk 0:00:33.6]} 30... b6 {[%clk 0:00:34.4]} 31. g4 {[%clk 0:00:31.9]}
31... e6 {[%clk 0:00:32.2]} 32. f5 {[%clk 0:00:29.2]} 32... exf5+ {[%clk
0:00:22.7]} 33. gxf5 {[%clk 0:00:30.1]} 33... g5 {[%clk 0:00:20.4]} 34. Be1
{[%clk 0:00:26.3]} 34... Be5 {[%clk 0:00:09.4]} 35. h3 {[%clk 0:00:22.9]} 35...
h5 {[%clk 0:00:08.7]} 36. f6 {[%clk 0:00:19]} 36... Bxf6 {[%clk 0:00:08.7]} 37.
Kf5 {[%clk 0:00:19.3]} 37... Be7 {[%clk 0:00:08.6]} 38. Bc3 {[%clk 0:00:16.8]}
38... Kd5 {[%clk 0:00:06.4]} 39. e4+ {[%clk 0:00:16.2]} 39... Kd6 {[%clk
0:00:05.7]} 40. Be5+ {[%clk 0:00:15]} 40... Nxe5 {[%clk 0:00:05.7]} 41. h4
{[%clk 0:00:11]} 41... gxh4 {[%clk 0:00:04.1]} 42. Kf4 {[%clk 0:00:11.6]} 42...
Ke6 {[%clk 0:00:02.4]} 43. Ke3 {[%clk 0:00:10.8]} 43... Ng6 {[%clk 0:00:03.3]}
44. Kf3 {[%clk 0:00:10.8]} 44... Bf6 {[%clk 0:00:04]} 45. Kg2 {[%clk 0:00:10.5]}
45... Ke5 {[%clk 0:00:04.8]} 46. Kh1 {[%clk 0:00:09.4]} 46... Kxe4 {[%clk
0:00:05.1]} 47. Kh2 {[%clk 0:00:09.8]} 47... Kd4 {[%clk 0:00:05.9]} 48. Kh1
{[%clk 0:00:09.1]} 48... Kc3 {[%clk 0:00:06.6]} 49. Kh2 {[%clk 0:00:09.3]} 49...
Kxb3 {[%clk 0:00:07.2]} 50. Kg2 {[%clk 0:00:09.3]} 50... Kxa4 {[%clk 0:00:07.9]}
51. Kh3 {[%clk 0:00:09.8]} 51... Kb3 {[%clk 0:00:08.6]} 52. Kg2 {[%clk
0:00:09.8]} 52... a4 {[%clk 0:00:09.3]} 53. Kf3 {[%clk 0:00:10.1]} 53... a3
{[%clk 0:00:09.9]} 54. Kg2 {[%clk 0:00:09.3]} 54... a2 {[%clk 0:00:10.2]} 55.
Kh2 {[%clk 0:00:09.8]} 55... h3 {[%clk 0:00:10.4]} 56. Kxh3 {[%clk 0:00:08]}
56... a1=Q {[%clk 0:00:10.7]} 57. Kh2 {[%clk 0:00:07.6]} 57... Qb2+ {[%clk
0:00:10.9]} 0-1

[Event "*** Titled Tuesday Blitz"]
[Site "Chess.com"]
[Date "2021.04.20"]
[Round "4"]
[White "FMOlexandrProhorov"]
[Black "Rozhkov_V"]
[Result "0-1"]
[WhiteElo "2242"]
[BlackElo "2430"]
[TimeControl "180+1"]
[EndTime "10:38:49 PDT"]
[Termination "Rozhkov_V won by resignation"]

1. e4 {[%clk 0:03:00.9]} 1... c5 {[%clk 0:02:59.6]} 2. c3 {[%clk 0:03:00.6]}
2... Nf6 {[%clk 0:02:59]} 3. e5 {[%clk 0:03:00]} 3... Nd5 {[%clk 0:02:58.6]} 4.
g3 {[%clk 0:02:59.7]} 4... d6 {[%clk 0:02:55.4]} 5. exd6 {[%clk 0:02:59.8]} 5...
e6 {[%clk 0:02:54.8]} 6. Bg2 {[%clk 0:03:00]} 6... Bxd6 {[%clk 0:02:54.3]} 7.
Ne2 {[%clk 0:03:00.5]} 7... O-O {[%clk 0:02:53.6]} 8. O-O {[%clk 0:03:01.4]}
8... Nc6 {[%clk 0:02:53.2]} 9. d4 {[%clk 0:03:02.3]} 9... cxd4 {[%clk
0:02:37.5]} 10. Nxd4 {[%clk 0:03:03.2]} 10... Nxd4 {[%clk 0:02:29.8]} 11. Qxd4
{[%clk 0:03:04.1]} 11... Be7 {[%clk 0:02:30]} 12. Rd1 {[%clk 0:02:54.7]} 12...
Bf6 {[%clk 0:02:26.1]} 13. Qc5 {[%clk 0:02:32.8]} 13... b6 {[%clk 0:02:00.8]}
14. Qc6 {[%clk 0:02:25.5]} 14... Bd7 {[%clk 0:01:45.9]} 15. Qd6 {[%clk
0:02:13.3]} 15... Ba4 {[%clk 0:01:23.9]} 16. Qxd8 {[%clk 0:02:08.1]} 16... Raxd8
{[%clk 0:01:23.5]} 17. Re1 {[%clk 0:01:49.2]} 17... Bc2 {[%clk 0:01:05.3]} 18.
Nd2 {[%clk 0:01:48.6]} 18... Nxc3 {[%clk 0:01:03.5]} 19. a4 {[%clk 0:00:33.8]}
19... Nxa4 {[%clk 0:00:50.7]} 20. Ra3 {[%clk 0:00:31]} 20... Nxb2 {[%clk
0:00:31.7]} 21. Ne4 {[%clk 0:00:26.3]} 21... Nd3 {[%clk 0:00:20.1]} 22. Nxf6+
{[%clk 0:00:21]} 22... gxf6 {[%clk 0:00:20.7]} 23. Rf1 {[%clk 0:00:21.5]} 23...
Nxc1 {[%clk 0:00:19.2]} 24. Rxc1 {[%clk 0:00:22.4]} 24... Rc8 {[%clk 0:00:14.5]}
25. Rxa7 {[%clk 0:00:21.8]} 25... Rfd8 {[%clk 0:00:15.1]} 26. h4 {[%clk
0:00:21.4]} 26... Rd6 {[%clk 0:00:11.2]} 27. Bf3 {[%clk 0:00:18.7]} 27... Kg7
{[%clk 0:00:10.6]} 28. Bh5 {[%clk 0:00:17.6]} 28... Kh6 {[%clk 0:00:05.8]} 29.
Bxf7 {[%clk 0:00:14.2]} 29... Rdc6 {[%clk 0:00:04.8]} 30. Re1 {[%clk 0:00:13]}
30... Bf5 {[%clk 0:00:04.7]} 31. Kh2 {[%clk 0:00:11.9]} 31... Rc2 {[%clk
0:00:03.2]} 32. Kg1 {[%clk 0:00:12.3]} 32... Rd2 {[%clk 0:00:03.4]} 33. Ra3
{[%clk 0:00:04.3]} 33... Rcc2 {[%clk 0:00:02.6]} 34. Rf1 {[%clk 0:00:04.7]}
34... Kg7 {[%clk 0:00:02.7]} 35. Be8 {[%clk 0:00:04.6]} 35... Bh3 {[%clk
0:00:02.9]} 36. Bb5 {[%clk 0:00:03.9]} 36... Bxf1 {[%clk 0:00:02.5]} 37. Bxf1
{[%clk 0:00:04.5]} 37... Rxf2 {[%clk 0:00:03.2]} 38. Re3 {[%clk 0:00:05]} 38...
e5 {[%clk 0:00:03.4]} 39. h5 {[%clk 0:00:05.3]} 39... Rb2 {[%clk 0:00:04]} 40.
Rc3 {[%clk 0:00:05.4]} 40... Kh6 {[%clk 0:00:04.6]} 41. g4 {[%clk 0:00:05.6]}
41... Kg5 {[%clk 0:00:04.8]} 42. Rc7 {[%clk 0:00:05.2]} 42... Kxg4 {[%clk
0:00:04.3]} 43. Rxh7 {[%clk 0:00:05.9]} 43... e4 {[%clk 0:00:04.2]} 44. Rg7+
{[%clk 0:00:06.8]} 44... Kxh5 {[%clk 0:00:04]} 45. Rh7+ {[%clk 0:00:06.7]} 45...
Kg6 {[%clk 0:00:03.9]} 46. Rf7 {[%clk 0:00:07.1]} 46... e3 {[%clk 0:00:04.4]}
47. Rc7 {[%clk 0:00:06.3]} 47... Rf3 {[%clk 0:00:04.5]} 48. Rc6 {[%clk 0:00:06]}
48... Rg3+ {[%clk 0:00:04.5]} 49. Kh1 {[%clk 0:00:06]} 49... Rb1 {[%clk
0:00:05]} 50. Kh2 {[%clk 0:00:05.9]} 50... Rxf1 {[%clk 0:00:05.7]} 51. Kxg3
{[%clk 0:00:05.7]} 51... e2 {[%clk 0:00:06.4]} 52. Re6 {[%clk 0:00:06.1]} 52...
e1=Q+ {[%clk 0:00:07]} 53. Rxe1 {[%clk 0:00:07]} 53... Rxe1 {[%clk 0:00:07.7]}
54. Kf4 {[%clk 0:00:07.9]} 54... Re5 {[%clk 0:00:08.4]} 55. Kf3 {[%clk
0:00:08.5]} 55... b5 {[%clk 0:00:09.2]} 56. Kf2 {[%clk 0:00:09.4]} 56... b4
{[%clk 0:00:10]} 57. Kf3 {[%clk 0:00:10.3]} 57... b3 {[%clk 0:00:10.8]} 0-1